Cogmind - Beta 14 @@@ ROGUE MODE // 2025.05.01 @ 17:19:39 Player: Desos Result: Destroyed by 6V-8F3(R) with Subdweller Machine Gun Performance ------------- Evolutions (0) 0 Regions Visited (2) 400 Robots Destroyed (30) 150 Value Destroyed (953) 953 Prototype IDs (11) 220 Alien Tech Used (0) 0 Bonus (0) 0 TOTAL SCORE: 1723 Bonus ------- None Cogmind --------- Core Integrity 0/250 Matter 300/300 Energy 100/100 System Corruption 0% Temperature Cool (0) Movement Rolling (150) Ox4 Location -10/Subcaves Parts ------- > --- POWER (1+1) ------ (None) > --- PROPULSION (2+1) - Light Treads Light Treads (+) Subdweller Monowheel > --- UTILITY (2+1) ---- Huge Storage Unit Makeshift System Shield (+) Rainbow Chip > --- WEAPON (2) ------- Subdweller Laser Subdweller Machine Gun > --- INVENTORY (25) --- Ion Engine Ion Engine Subdweller Power Source Light Nuclear Core Wheel Heat Sink Improved Heat Sink Medium Matter Pod (98) Medium Matter Pod (0) Large Matter Pod (0) Visual Processing Unit Sensor Array Terrain Scanner Subdweller Machine Gun Barrage Gun Heavy Battle Rifle Grenade Launcher Grenade Launcher Ripper Peak State ------------ > --- POWER ------------ Light Nuclear Core > --- PROPULSION ------- Light Treads Light Treads Compact Wheel > --- UTILITY ---------- Huge Storage Unit Makeshift System Shield Rainbow Chip > --- WEAPON ----------- Subdweller Laser Grenade Launcher Subdweller Shrapnel Launcher > --- INVENTORY -------- Ion Engine Ion Engine Subdweller Power Source Light Nuclear Core Light Treads Wheel Subdweller Monowheel Heat Sink Improved Heat Sink Medium Matter Pod Medium Matter Pod Large Matter Pod Visual Processing Unit Sensor Array Terrain Scanner Grenade Launcher [Rating: 31] Favorites ----------- Power Light Nuclear Core Engine Ion Engine Power Core Light Nuclear Core Propulsion Light Treads Treads Light Treads Wheel Compact Wheel Utility Huge Storage Unit Storage Huge Storage Unit Processor Signal Interpreter Hackware Makeshift System Shield Weapon Assault Rifle Energy Gun Subdweller Laser Ballistic Gun Assault Rifle Launcher Grenade Launcher Build | -11 -10 -10 ------- Run | Yrd Mat Sub Slots Evolved . | . . . Power . | . . . Propulsion . | . . . Utility . | . . . Weapon . | . . . Parts Attached 67 | 8 34 25 Power 3 | 1 1 1 Engine 1 | 1 . . Core 2 | . 1 1 Reactor . | . . . Propulsion 34 | 5 20 9 Treads 16 | 2 10 4 Leg . | . . . Wheel 18 | 3 10 5 Hover . | . . . Flight . | . . . Utility 5 | . 2 3 Device . | . . . Storage 2 | . 2 . Processor 2 | . . 2 Hackware 1 | . . 1 Protection . | . . . Artifact . | . . . Weapon 25 | 2 11 12 Energy Gun 2 | . . 2 Energy Cannon . | . . . Ballistic Gun 13 | 2 6 5 Ballistic Cannon . | . . . Launcher 10 | . 5 5 Special Weapon . | . . . Impact Weapon . | . . . Slashing Weapon . | . . . Piercing Weapon . | . . . Special Melee Weapon . | . . . Unidentified Prototypes . | . . . Parts Lost 10 | . . 10 Power 2 | . . 2 Propulsion 3 | . . 3 Utility . | . . . Weapon 5 | . . 5 Highest Loss Streak 5 | . . 5 To Critical Strikes . | . . . Average Slot Usage (%) 90 | . 84 94 Core 12 | . 12 11 Treads 8 | . 3 13 Wheel 18 | . 24 14 Storage 13 | . 13 13 Processor 7 | . . 12 Hackware 1 | . . 2 Energy Gun 1 | . . 2 Ballistic Gun 23 | . 27 19 Launcher 2 | . . 3 Peak Build Rating 31 | 5 10 31 Average Rating 12 | 3 8 15 On Entrance 5 | . 5 10 Naked Turns . | . . . Heaviest Build 100 | 9 89 100 Greatest Support 40 | 26 40 26 Greatest Overweight (x) 8 | . 3 8 Average Overweight (x) 3 | . 2 4 Largest Inventory Capacity 25 | 5 25 25 Average Capacity 23 | 5 23 25 Most Carried 22 | 5 19 22 Average Carried 16 | 2 13 19 Final Capacity 25 | 5 25 25 Final Carried 19 | 4 19 19 Class Distribution -------------------- 100% | Mutant Dominant Class ---------------- Mutant | -10/Materials Mutant | -10/Subcaves Resources | -11 -10 -10 ----------- Run | Yrd Mat Sub Matter Collected 1481 | 222 438 821 Remotely . | . . . Salvage Created 865 | . 438 427 Parts 70 | . 33 37 Haulers Intercepted . | . . . Recyclers Shooed . | . . . Parts Field Recycled . | . . . Retrieved Matter . | . . . Parts Self-Destructed 13 | . . 13 Prevented . | . . . Kills | -11 -10 -10 ------- Run | Yrd Mat Sub Combat Hostiles Destroyed 28 | . 11 17 Guns 20 | . 11 9 AOE 8 | . . 8 Classes Destroyed 5 | . 3 2 Watcher 2 | . 2 . Swarmer 7 | . 3 4 Grunt 8 | . 8 . Sentry 2 | . . 2 Subdweller 11 | . . 11 Best Kill Streak 5 | . 5 5 Combat Bots Only 5 | . 5 5 Max Kills in Single Turn 2 | . 1 2 Gunslinging . | . . . Exploded 2 | . . 2 Melee . | . . . Uniques/NPCs Destroyed . | . . . Combat | -11 -10 -10 -------- Run | Yrd Mat Sub Hostile Shots Fired 110 | . 33 77 Missed 32 | . 11 21 Damage Taken 1376 | . 262 1114 Core 267 | . 26 241 Absorbed by Shields . | . . . Core Remaining (%) 100 | 100 . . Volleys Fired 91 | . 36 55 Largest 2 | . 2 2 Hottest 100 | . 60 100 Shots Fired 159 | . 71 88 Gun 138 | . 67 71 Cannon . | . . . Launcher 21 | . 4 17 Special . | . . . Kinetic 119 | . 67 52 Thermal 21 | . . 21 Explosive 19 | . 4 15 Electromagnetic . | . . . Robot Hit Streak 16 | . 15 16 Robot Miss Streak 2 | . 2 2 Penetration Max . | . . . Secondary Targets 2 | . 1 1 Max Gunslinging Chain 1 | . 1 1 Shots Hit Robots 98 | . 45 53 Core Hits 55 | . 24 31 Critical Kills 1 | . 1 . Critical Parts Destroyed . | . . . Critical Strikes 3 | . 1 2 Destroy 3 | . 1 2 Melee Attacks . | . . . Impact . | . . . Slashing . | . . . Piercing . | . . . Sneak Attacks . | . . . Combat Hostiles . | . . . Follow-up Attacks . | . . . Damage Inflicted 2060 | . 655 1405 Guns 1447 | . 603 844 Cannons . | . . . Explosions 613 | . 52 561 Melee . | . . . Ramming . | . . . Kinetic 1247 | . 603 644 Thermal 264 | . . 264 Explosive 549 | . 52 497 Electromagnetic . | . . . Impact . | . . . Slashing . | . . . Piercing . | . . . Highest Corruption . | . . . Average Corruption . | . . . Corruption Purged . | . . . Corruption Blocked . | . . . Overload Shots . | . . . Overflow Damage 31 | . . 31 Projectiles . | . . . Explosions 31 | . . 31 Melee . | . . . Knockbacks . | . . . Impact . | . . . Kinetic . | . . . Secondary . | . . . Self-Inflicted Damage 145 | . . 145 Shots 6 | . . 6 Rammed . | . . . Targets Rammed . | . . . Kicked . | . . . Crushed . | . . . Highest Temperature 6 | . 6 . Average Temperature 2 | . 2 . Received Heat Transfer 375 | . 126 249 Siege Activations . | . . . Robots Corrupted . | . . . Combat Hostiles . | . . . Parts Fried . | . . . Impact Corruptions . | . . . Robots Melted . | . . . Combat Hostiles . | . . . Parts Melted 2 | . . 2 Heat Transferred 325 | . . 325 Parts Sabotaged . | . . . Parts Stolen . | . . . Parts Stripped . | . . . Power Chain Reactions . | . . . Alert | -11 -10 -10 ------- Run | Yrd Mat Sub Peak Influence 176 | . 176 . Initial . | . . . Average 42 | . 44 . Maximum Alert Level . | . . . Low Security (%) 100 | 100 100 . Level 1 . | . . . Level 2 . | . . . Level 3 . | . . . Level 4 . | . . . Level 5 . | . . . High Security . | . . . Max Security . | . . . Squads Dispatched . | . . . Investigation . | . . . Extermination . | . . . Reinforcement . | . . . Assault . | . . . Garrison . | . . . Intercept . | . . . Searches Triggered . | . . . Construction Impeded . | . . . Haulers Reinforced . | . . . Active Scanning Responses . | . . . Cargo Convoy Interrupts . | . . . Stealth | -11 -10 -10 --------- Run | Yrd Mat Sub Distress Signals 3 | . 3 . Communications Jammed . | . . . Distress Signals . | . . . Times Spotted 49 | . 29 20 Peak Tracking Total 6 | . 6 3 Tactical Retreats 5 | . 3 2 Traps | -11 -10 -10 ------- Run | Yrd Mat Sub Traps Triggered . | . . . Indirectly . | . . . Trap Hack Attempts . | . . . Triggered . | . . . Disarmed . | . . . Reprogrammed . | . . . Reused . | . . . Traps Extracted . | . . . Installed . | . . . Triggered . | . . . Machines | -11 -10 -10 ---------- Run | Yrd Mat Sub Machines Disabled 4 | . 1 3 Max in Single Turn 2 | . 1 2 Machines Repaired . | . . . Machines Dismantled . | . . . Machines Sabotaged . | . . . Overloaded Fab Kills . | . . . Hacking | -11 -10 -10 --------- Run | Yrd Mat Sub Machines Accessed 9 | . 8 1 Terminals 6 | . 6 . Fabricators . | . . . Repair Stations . | . . . Recycling Units 2 | . 2 . Scanalyzers . | . . . Garrison Access . | . . . Total Hacks 34 | . 25 9 Successful 24 | . 15 9 Failed 10 | . 10 . Catastrophic 1 | . 1 . Database Lockouts . | . . . Manual 22 | . 22 . Terminals 18 | . 18 . Fabricators . | . . . Repair Stations . | . . . Recycling Units 7 | . 7 . Scanalyzers . | . . . Garrison Access . | . . . Terminal Hacks 10 | . 1 9 Record 8 | . . 8 Unreport Threat 1 | . 1 . Derelict Proto ID Bank 1 | . . 1 Fabricator Hacks . | . . . Repair Station Hacks . | . . . Recycling Unit Hacks 2 | . 2 . Report Inventory 2 | . 2 . Scanalyzer . | . . . Garrison Access Hacks . | . . . Unauthorized Hacks 12 | . 12 . Terminals 8 | . 8 . Assimilate 1 | . 1 . Botnet 6 | . 6 . Operators 1 | . 1 . Fabricators . | . . . Repair Stations . | . . . Recycling Units 4 | . 4 . Reject 2 | . 2 . Recyclers 1 | . 1 . Mask 1 | . 1 . Scanalyzers . | . . . Garrison Access . | . . . Data Cores Recovered . | . . . Used . | . . . Hacking Detections 7 | . 7 . Full Trace Events 1 | . 1 . Feedback Events . | . . . Feedback Blocked . | . . . Robot Schematics Acquired . | . . . Robots Built . | . . . Authchips . | . . . Time . | . . . Total Robot Build Rating . | . . . Part Schematics Acquired . | . . . Parts Built . | . . . Authchips . | . . . Time . | . . . Total Part Build Rating . | . . . Parts Repaired . | . . . Time . | . . . Parts Recycled . | . . . Recycled Matter . | . . . Retrieved Matter . | . . . Retrieved Components . | . . . Parts Scanalyzed . | . . . Part Schematics Acquired . | . . . Parts Damaged . | . . . Bothacking | -11 -10 -10 ------------ Run | Yrd Mat Sub Used RIF Installer . | . . . Robots Hacked . | . . . Non-combat . | . . . Combat . | . . . Robot Hacks Applied . | . . . Relay Couplers Released . | . . . Fabnet Peak Effective % . | . . . Robots Rewired . | . . . Allies Hacked . | . . . Hacks Repelled . | . . . Allies | -11 -10 -10 -------- Run | Yrd Mat Sub Total Allies 1 | . 1 . Largest Group 1 | . 1 1 Highest-Rated Group 10 | . 10 6 Highest-Rated Ally 10 | . 10 6 Total Orders . | . . . Ally Attacks . | . . . Total Damage . | . . . Kills . | . . . Allies Corrupted . | . . . Allies Melted . | . . . Intel | -11 -10 -10 ------- Run | Yrd Mat Sub Robot Analysis Total . | . . . Derelict Logs Recovered 1 | . . 1 Drone Launches . | . . . Drone Recoveries . | . . . Exploration | -11 -10 -10 ------------- Run | Yrd Mat Sub Turns Passed 4103 | 64 1781 2258 Spaces Moved 2446 | 46 1046 1354 Core 6 | 6 . . Treads 44 | 2 42 . Legs . | . . . Wheels 2396 | 38 1004 1354 Hover . | . . . Flight . | . . . Fastest Speed 50 | 50 90 135 Average Speed 142 | 91 132 152 Slowest Speed 200 | 160 160 200 Overloaded Moves . | . . . Propulsion Burnouts . | . . . Robots Hopped . | . . . Cave-ins Triggered . | . . . Exploration Rate (%) 56 | 4 99 67 Regions Visited 2 Branch Regions 1 Pre-discovered Areas 1 | . . 1 Known Exits Taken . | . . . Unknown Exits Taken 2 | 1 1 . Scrap Searched 6 | . . 6 Spaces Dug 6 | . 6 . Terrain Destroyed 140 | . 29 111 Melee . | . . . Projectile . | . . . AOE 140 | . 29 111 Terrain Rammed . | . . . Walls Destroyed . | . . . Machines Disabled . | . . . Actions | -11 -10 -10 --------- Run | Yrd Mat Sub Total 2877 | 65 1354 1458 Wait 229 | 4 217 8 Move 2444 | 45 1045 1354 Hop . | . . . Pick Up 40 | 8 18 14 Fast Attach 3 | 1 2 . Attach 17 | 4 . 13 Detach . | . . . Swap 47 | 3 32 12 Drop 6 | . 4 2 Fire 91 | . 36 55 Melee . | . . . Ram . | . . . Kick . | . . . Crush . | . . . Escape Stasis . | . . . Rewire . | . . . Trap . | . . . Miscellaneous . | . . . Route ------- -11/Scrapyard -10/Materials (discovered 5 exits: [*Mat x3] / [*Min] / *Sub) -10/Subcaves (discovered 1 exit: *Rec) History --------- Turn | Location | Event 2 | -11/Scrapyard | Met Revision 17 21 | -11/Scrapyard | Discovered new exit (range 15) 65 | -11/Scrapyard | Entered Materials 231 | -10/Materials | Discovered new exit (range 12) 307 | -10/Materials | Build established: Mutant 1057 | -10/Materials | Discovered new exit (range 15) 1228 | -10/Materials | Discovered new exit (range 7) 1434 | -10/Materials | Discovered new exit (range 12) 1658 | -10/Materials | Discovered new exit (range 14) 1846 | -10/Materials | Entered Subcaves 1846 | -10/Subcaves | Accompanied by 1 ally 1852 | -10/Subcaves | Discovered new exit (range 10) 1862 | -10/Subcaves | Ambushed by Subdweller buried in earth 1904 | -10/Subcaves | Identified exit to Recycling 2385 | -10/Subcaves | A swath of the cavern ceiling suddenly collapsed 2386 | -10/Subcaves | Shifting Twisted Machinery released Sub. Power Source 2426 | -10/Subcaves | Shifting Twisted Machinery released Mak. System Shield 2542 | -10/Subcaves | A swath of the cavern ceiling suddenly collapsed 2968 | -10/Subcaves | Core integrity fell below 50% 3551 | -10/Subcaves | Lost 5 parts (1p1n3w) 3614 | -10/Subcaves | Visited 4L-MR0's lab 3636 | -10/Subcaves | Found Rainbow Chip 3639 | -10/Subcaves | Attached Rainbow Chip, gained temporary slots: Power, Propulsion, Utility, Weapon 3686 | -10/Subcaves | Core integrity fell below 20% 3931 | -10/Subcaves | Learned location of Storage (-8) 3994 | -10/Subcaves | Shifting Twisted Machinery released Mak. Axe 4007 | -10/Subcaves | Shifting Twisted Machinery released Sub. Optics 4008 | -10/Subcaves | Shifting Twisted Machinery released Scrap Shield 4104 | -10/Subcaves | Destroyed by 6V-8F3(R) with Subdweller Machine Gun Last Messages --------------- 03969_ Found Barrage Gun. 03969_ Found Battle Rifle. 03969_ Found 60 Matter. 03970_ Acquired 60 matter. 03972_ Acquired Barrage Gun. 03975_ Searching scrap... 03975_ Found Sub. Laser. 03975_ Found Sub. Power Source. 03975_ Found 45 Matter. 03976_ Acquired 45 matter. 03976_ Searching scrap... 03976_ Found Scrap Shield. 03976_ Found Flamer. 03976_ Found 67 Matter. 03977_ Acquired 67 matter. Mak. Axe falls loose from the Twisted Machinery. Sub. Optics falls loose from the Twisted Machinery. Scrap Shield falls loose from the Twisted Machinery. 04077_ H7-B5A(R) destroyed. 04095_ Acquired 28 matter. Map ----- +----------------------------------------------------+ | | | | | | | | | ?????????????????????????????????????????????????? | | ?????????????????????????????????????????????????? | | ?????????????????????????????????????????????????? | | ?????????????????????????????????????????????????? | | ?????????????????????????????????????????????????? | | ?????????????????????????????????????????????????? | | ?????????????????????????????????????????????????? | | ?????????????????????????????????????????????????? | | ?????????????????????????????????????????????????? | | ?????????????????????????????????????????????????? | | ?????????????????????????????????????????????????? | | ?????????????????????????????????????????????????? | | ?????????????????????????????????????????????????? | | ?????????????????????????????????????????????????? | | ?????????????????????????????????????????????????? | | #????????????????????????????????????????????????? | | ##?????????????????????????????????????????????? | | ??????###????????????????????????????????????? | | # ###??# ##????????####?##?"#?????????????????? | | # ?# #????????# ## #""""????????????????? | | ? #?# ?????????# R"""??????????????????? | | ??# #?# ?####???## @ #?????????????????????? | | ??# ### ?## ##??# ###?????????????????????? | | ???# ?## #??# "##??????????????????????? | | ????# #?# ##?# """#??????????????????????? | | #??## ### #### ""#??????????????????????? | | #### ! ""##??????????????????????? | | #??????????????????????? | | | #?????????????????????? | | ### #?????????????????? | | ###?## ## #?????????????????? | | ##????# #?# ???????????????? | | #????# #??# #??????????????? | | #???# ##???# ###??????????????? | | #???# ###?????# ####????????????????? | | ### #??# ###????????##???????????????????? | | ###?#####??####????????????????????????????????? | | ##??????????????????????????????????????????????? | | ##???????????????????????????????????????????????? | | ?????????????????????????????????????????????????? | | ?????????????????????????????????????????????????? | | ##???????????????????????????????????????????????? | | "##??????????????????????????????????????????????? | | #??????????????????????????????????????????????? | | "#?????????????????????????????????????????????? | | ####?????????????????????????????????????????????? | +----------------------------------------------------+ Best States ------------- Heat Dissipation 25 Energy Generation 14 Energy Capacity 250 Matter Stores 300 Matter Capacity 300 Sight Range 16 Terrain Scan Density 10 Evasion (%) 42 Recoil Reduction 2 Defensive Hacking 11 Item Schematics ----------------- None Robot Schematics ------------------ None Fabricated ------------ Nothing Alien Tech Used ----------------- None Achievements -------------- None Challenges ------------ None Game ------ Seed ExperimentalHackingSabre Manual? 0 Play Time 00:29:09 Cumulative 30.8 hours Start 2025.05.01 @ 16:48:32 End 2025.05.01 @ 17:19:39 Sessions 1 Manual Loads 0 Difficulty Rogue Special Mode None Game No. 58 Rogue 58 Adventurer 0 Explorer 0 Win Type - Total 0 Types 0/0/0/0/0/0/0/0/0 Lore% 16 Gallery% 19 Achievement% 18 Wizard Run 0 Options --------- Layout 0 ASCII 0 Keyboard 0 Movement Mouse Keybinds 1 Fullscreen 2 Font 20/SmallcapsGlow Map View 96x60 Zoom Use 0% Tactical HUD 1 Map Filters NONE Filters NONE Steam 1 RUN: 14d7eece-e776-4b8e-bab7-618fd68883ba